bitfinex-derivatives/quotes_BNBF0:USTF0_20250309
["timestamp","ask_amount","ask_price","bid_price","bid_amount"]
[1741561278055,0.262,554.33,554.22,0.36086752]
[1741561278253,0.262,554.33,554.23,0.29728345]
[1741561278453,0.262,554.33,554.24,0.3608545]
[1741561278754,0.262,554.33,554.25,0.29728345]
[1741561279455,0.809,554.35,554.25,0.29728345]
[1741561288862,0.809,554.35,554.26,0.36084148]
[1741561289062,0.809,554.35,554.27,0.29728345]
[1741561289362,0.809,554.35,554.28,0.36082846]
[1741561289758,0.809,554.35,554.29,0.29728345]
[1741561291761,0.262,554.58,554.29,0.29728345]
[1741561292163,0.262,554.58,554.3,0.36081544]
[1741561292361,0.262,554.58,554.31,0.29728345]
[1741561292558,0.262,554.58,554.32,0.36080242]
[1741561292762,0.262,554.58,554.33,0.29728345]
[1741561292964,0.262,554.58,554.34,0.3607894]
[1741561293264,0.262,554.58,554.35,0.29728345]
[1741561293456,0.262,554.58,554.36,0.36077639]
[1741561293665,0.262,554.58,554.37,0.29728345]
[1741561293960,0.262,554.58,554.38,0.36076337]
[1741561294161,0.262,554.58,554.39,0.29728345]
[1741561294361,0.262,554.58,554.4,0.36075036]
[1741561294663,0.262,554.58,554.41,0.29728345]
[1741561295757,0.634,554.7,554.41,0.29728345]
[1741561300561,0.634,554.7,554.42,0.29731694]
[1741561300766,0.634,554.7,554.41,0.29731694]
[1741561300965,0.634,554.7,554.42,0.29731694]
[1741561301170,0.634,554.7,554.41,0.29731694]
[1741561301462,0.634,554.7,554.42,0.36073734]
[1741561302669,0.634,554.7,554.43,0.29725271]
[1741561303262,0.634,554.7,554.42,0.36073734]
[1741561304863,0.634,554.7,554.43,0.29723973]
[1741561305964,0.634,554.7,554.44,0.36072433]
[1741561306364,0.634,554.7,554.45,0.29720041]
[1741561306664,0.634,554.7,554.46,0.36071132]
[1741561306863,0.634,554.7,554.47,0.29720041]
[1741561307066,0.634,554.7,554.48,0.36069831]
[1741561307268,0.634,554.7,554.49,0.29720041]
[1741561308062,0.634,554.7,554.48,0.36069831]
[1741561308371,0.634,554.7,554.49,0.2972873]
[1741561309970,0.634,554.7,554.5,0.29731488]
[1741561310170,0.634,554.7,554.48,0.36069831]
[1741561311565,0.634,554.7,554.49,0.29726632]
[1741561311970,0.634,554.7,554.48,0.36069831]
[1741561312770,0.634,554.7,554.49,0.29725913]
[1741561313167,0.634,554.7,554.48,0.36069831]
[1741561313366,0.634,554.7,554.49,0.2972232]
[1741561313670,0.634,554.7,554.48,0.36069831]
[1741561313871,0.634,554.7,554.49,0.2972205]
[1741561315074,0.262,554.74,554.49,0.2972205]
[1741561315772,0.262,554.74,554.5,0.2972205]
[1741561315978,0.262,554.74,554.49,0.2972205]
[1741561316171,0.262,554.74,554.5,0.2972205]
[1741561316376,0.262,554.74,554.51,0.2972205]
[1741561316577,0.262,554.74,554.49,0.2972205]
[1741561316776,0.262,554.74,554.5,0.2972205]
[1741561316972,0.262,554.74,554.49,0.2972205]
[1741561317181,0.262,554.74,554.51,1.3329422]
[1741561317371,0.262,554.74,554.52,0.29714149]
[1741561319379,0.262,554.74,554.49,0.29714149]
[1741561319577,0.262,554.74,554.5,0.29714149]
[1741561319884,0.262,554.74,554.51,0.29714149]
[1741561320084,0.262,554.74,554.49,0.29714149]
[1741561320384,0.262,554.74,554.5,0.29714149]
[1741561320585,0.262,554.74,554.49,0.29714149]
[1741561320982,0.683,554.81,554.5,0.29702271]
[1741561321182,0.683,554.81,554.51,0.29702271]
[1741561321383,0.683,554.81,554.49,0.29702271]
[1741561321679,0.683,554.81,554.5,0.29702271]
[1741561321881,0.683,554.81,554.49,0.29702271]
[1741561322082,0.683,554.81,554.5,0.29702271]
[1741561322383,0.683,554.81,554.51,0.29704359]
[1741561322586,0.683,554.81,554.48,0.36069831]
[1741561322587,0.683,554.81,554.49,0.29704359]
[1741561322789,0.683,554.81,554.5,0.29704359]
[1741561323092,0.683,554.81,554.51,0.29704359]
[1741561323292,0.683,554.81,554.52,0.29706006]
[1741561323490,0.683,554.81,554.49,0.29706006]
[1741561323692,0.683,554.81,554.5,0.29706006]
[1741561323884,0.683,554.81,554.51,0.29706006]
[1741561324090,0.683,554.81,554.49,0.29706006]
[1741561324289,0.683,554.81,554.48,0.36069831]
[1741561324485,0.683,554.81,554.49,0.29702486]
[1741561325190,0.683,554.81,554.5,0.3606853]
[1741561325490,0.683,554.81,554.51,0.29702486]
[1741561325683,0.683,554.81,554.52,0.36067229]
[1741561325887,0.683,554.81,554.53,0.29702486]
[1741561326090,0.683,554.81,554.54,0.36065928]
[1741561326285,0.683,554.81,554.55,0.29702486]
[1741561326690,0.683,554.81,554.56,0.36064627]
[1741561326995,0.683,554.81,554.57,0.29702486]
[1741561327291,0.683,554.81,554.58,0.36063327]
[1741561327493,0.683,554.81,554.59,0.29702486]
[1741561327886,0.683,554.81,554.58,0.36063327]
[1741561328092,0.683,554.81,554.59,0.29701568]
[1741561331390,0.683,554.81,554.58,0.36063327]
[1741561333097,0.683,554.81,554.59,0.2972526]
[1741561333795,0.683,554.81,554.58,0.36063327]
[1741561334190,0.262,554.83,554.58,0.36063327]
[1741561334395,0.262,554.83,553.9,1.3329422]
[1741561334590,0.262,554.83,553.91,0.29733423]
[1741561334795,0.262,554.83,553.92,0.29733423]
[1741561335097,0.262,554.83,553.94,0.36104993]
[1741561335288,0.262,554.83,553.95,0.29733423]
[1741561335490,0.262,554.83,553.96,0.29733423]
[1741561335692,0.262,554.83,553.97,0.29733423]
[1741561335898,0.262,554.83,553.98,0.29733423]
[1741561336197,0.262,554.83,553.94,0.36104993]
[1741561336198,0.262,554.83,553.99,0.29733423]
[1741561336391,0.262,554.83,554.0,0.29733423]
[1741561336596,0.262,554.83,554.01,0.29733423]
[1741561336994,0.262,554.83,554.02,0.29733423]
[1741561337188,0.262,554.83,554.03,0.29733423]
[1741561337392,1.271,554.83,554.04,0.29727241]
[1741561337592,1.271,554.83,554.05,0.29727241]
[1741561337798,1.271,554.83,554.06,0.29727241]
[1741561337991,1.271,554.83,554.07,0.29727241]
[1741561338196,1.271,554.83,553.95,0.29727241]
[1741561338498,1.271,554.83,553.96,0.29727241]
[1741561338792,1.271,554.83,553.97,0.29727241]
[1741561338997,1.271,554.83,553.98,0.29727241]
[1741561339296,1.271,554.83,553.95,0.29719147]
[1741561339596,1.271,554.83,553.96,0.29719147]
[1741561339790,1.271,554.83,553.95,0.29719147]
[1741561340797,1.271,554.83,553.97,0.36103038]
[1741561340990,1.271,554.83,553.98,0.29719147]
[1741561342091,1.271,554.83,554.0,0.36101083]
[1741561342295,1.271,554.83,554.01,0.29719147]
[1741561343292,1.271,554.83,554.02,0.29719147]
[1741561343492,1.271,554.83,554.03,0.29719147]
[1741561343693,1.271,554.83,554.04,0.65817623]
[1741561343900,1.271,554.83,554.05,0.29719147]
[1741561344101,1.271,554.83,554.06,0.29719147]
[1741561344400,1.271,554.83,554.07,0.65815669]
[1741561344599,1.271,554.83,554.08,0.29719147]
[1741561344799,1.271,554.83,554.09,0.29719147]
[1741561345000,1.271,554.83,554.1,0.29719147]
[1741561345195,1.271,554.83,554.11,0.29719147]
[1741561345399,1.271,554.83,554.12,0.29719147]
[1741561345601,1.271,554.83,554.13,0.29711943]
[1741561345903,1.271,554.83,554.14,0.65803905]
[1741561346198,1.271,554.83,554.15,0.29711943]
[1741561346399,1.271,554.83,554.16,0.29711943]
[1741561346696,1.271,554.83,554.17,0.29711943]
[1741561346899,1.271,554.83,554.18,0.29711943]
[1741561347102,1.271,554.83,554.19,0.29711943]
[1741561347300,1.271,554.83,554.2,0.65799997]
[1741561347502,1.271,554.83,554.21,0.65799346]
[1741561347698,1.271,554.83,554.22,0.65798695]
[1741561347997,1.271,554.83,554.23,0.65798044]
[1741561348200,1.271,554.83,554.24,0.65797393]
[1741561348400,1.271,554.83,554.25,0.65796742]
[1741561348601,1.271,554.83,554.26,0.29708607]
[1741561349196,1.271,554.83,554.27,0.36083497]
[1741561349395,1.271,554.83,554.28,0.29708607]
[1741561349596,1.271,554.83,554.29,0.36082195]
[1741561349800,1.271,554.83,554.3,0.29708607]
[1741561350103,1.271,554.83,554.31,0.36080893]
[1741561350304,1.271,554.83,554.32,0.29708607]
[1741561350602,1.271,554.83,554.33,0.36079591]
[1741561350804,1.271,554.83,554.34,0.29708607]
[1741561351601,1.271,554.83,554.35,0.29708607]
[1741561351798,1.271,554.83,554.36,0.29708607]
[1741561352097,1.271,554.83,554.37,0.29708607]
[1741561352297,1.271,554.83,554.38,0.29708607]
[1741561352503,1.271,554.83,554.39,0.29708607]
[1741561352699,1.271,554.83,554.4,0.65783643]
[1741561352901,1.271,554.83,554.41,0.29708607]
[1741561353198,1.271,554.83,554.08,1.3329422]
[1741561353199,1.271,554.83,554.42,0.65782341]
[1741561353399,1.271,554.83,554.43,0.29708607]
[1741561353607,1.271,554.83,554.44,0.6578104]
[1741561353808,1.271,554.83,554.45,0.29708607]
[1741561354000,1.271,554.83,554.46,0.29708607]
[1741561354208,1.271,554.83,554.47,0.29708607]
[1741561354506,1.271,554.83,554.48,0.29708607]
[1741561354709,1.271,554.83,554.46,1.3329422]
[1741561354710,1.271,554.83,554.49,0.29708607]
[1741561355002,1.271,554.83,554.5,0.29708607]
[1741561355203,1.271,554.83,554.51,0.29708607]
[1741561355406,1.271,554.83,554.47,0.29708607]
[1741561355609,1.009,554.83,554.48,0.29708607]
[1741561355806,1.009,554.83,554.47,0.29708607]
[1741561356007,1.009,554.83,554.48,0.29708607]
[1741561356209,1.009,554.83,554.47,0.29708607]
[1741561356404,1.009,554.83,554.48,0.29708607]
[1741561356607,1.009,554.83,554.47,0.29708607]
[1741561356807,1.009,554.83,554.44,0.36072433]
[1741561356808,1.009,554.83,554.48,0.29708607]
[1741561357002,1.009,554.83,554.45,0.29708607]
[1741561357201,1.009,554.83,554.44,0.36072433]
[1741561357909,1.009,554.83,554.45,0.29710345]
[1741561358706,1.271,554.83,554.45,0.29710345]
[1741561359909,1.271,554.83,554.46,0.29720951]
[1741561360108,1.271,554.83,554.45,0.29720951]
[1741561363913,1.271,554.83,554.46,0.36071132]
[1741561364116,1.271,554.83,554.47,0.29720951]
[1741561364311,1.271,554.83,554.48,0.36069831]
[1741561367416,1.271,554.83,554.49,0.29727015]
[1741561368016,1.271,554.83,554.48,0.36069831]
[1741561368412,1.271,554.83,554.49,0.29723871]
[1741561369214,1.271,554.83,554.5,0.3606853]
[1741561369418,1.271,554.83,554.51,0.29723871]
[1741561371118,1.271,554.83,554.52,0.2972367]
[1741561371320,1.271,554.83,554.51,0.2972367]
[1741561372820,1.271,554.83,554.5,0.3606853]
[1741561373122,1.271,554.83,554.51,0.29723221]
[1741561373520,1.271,554.83,554.5,0.3606853]
[1741561373714,1.271,554.83,554.51,0.29722908]
[1741561379218,1.271,554.83,554.5,0.3606853]
[1741561381819,1.271,554.83,553.91,1.3329422]
[1741561382024,1.3960301,554.82,553.92,0.65848288]
[1741561382227,1.3960301,554.82,553.93,0.29741992]
[1741561382526,1.3960301,554.81,553.93,0.29741992]
[1741561383120,1.3960301,554.8,553.93,0.29741992]
[1741561383527,4.28102595,554.8,553.92,0.36106296]
[1741561383827,4.28102595,554.79,553.93,0.29747582]
[1741561384029,2.88499585,554.78,553.93,0.29747582]
[1741561384227,1.08230527,554.77,553.93,0.29747582]
[1741561384424,2.88499585,554.77,553.93,0.29747582]
[1741561384626,1.3960301,554.76,553.93,0.29747582]
[1741561385420,0.262,554.83,553.93,0.29747582]
[1741561385625,1.10285423,554.75,553.93,0.29747582]
[1741561385925,0.789,554.75,553.93,0.29747582]
[1741561386323,1.08133967,554.74,553.93,0.29747582]
[1741561386523,2.88375325,554.73,553.93,0.29747582]
[1741561386728,7.49775847,554.72,553.93,0.29747582]
[1741561386929,7.49775847,554.71,553.93,0.29747582]
[1741561387129,7.49775847,554.7,553.93,0.29747582]
[1741561387329,7.49775847,554.69,553.93,0.29747582]
[1741561387530,7.49775847,554.68,553.93,0.29747582]
[1741561387729,7.49775847,554.67,553.93,0.29747582]
[1741561387928,4.61209377,554.66,553.93,0.29747582]
[1741561388128,2.88375325,554.65,553.93,0.29747582]
[1741561388328,3.62526053,554.64,553.93,0.29747582]
[1741561388524,1.07976994,554.63,553.93,0.29747582]
[1741561388731,3.62526053,554.64,553.93,0.29747582]
[1741561388925,1.39344798,554.62,553.93,0.29747582]
[1741561389129,1.07993645,554.61,553.93,0.29747582]
[1741561389330,2.88344862,554.61,553.93,0.29747582]
[1741561389526,4.27675558,554.6,553.93,0.29747582]
[1741561389731,1.07972853,554.59,553.93,0.29747582]
[1741561389929,0.262,554.59,553.93,0.29747582]
[1741561390230,1.39344798,554.58,553.93,0.29747582]
[1741561390631,1.07918777,554.57,553.93,0.29747582]
[1741561390832,2.8827395,554.56,553.93,0.29747582]
[1741561391032,2.8827395,554.55,553.93,0.29747582]
[1741561391232,1.07918777,554.54,553.92,0.36106296]
[1741561391427,1.07918777,554.53,553.93,0.29763625]
[1741561391634,2.8827395,554.52,553.93,0.29763625]
[1741561391832,2.8827395,554.51,553.93,0.29763625]
[1741561392034,2.8827395,554.5,553.93,0.29763625]
[1741561392335,2.8827395,554.49,553.92,0.36106296]
[1741561392536,2.8827395,554.48,553.92,0.36106296]
[1741561392732,3.62526053,554.51,553.93,0.29766124]
[1741561392733,1.07918777,554.47,553.93,0.29766124]
[1741561393035,3.62526053,554.47,553.92,0.36106296]
[1741561393334,3.62526053,554.47,553.93,0.29764039]
[1741561393534,2.4702479,554.46,553.93,0.29764039]
[1741561393829,1.39344798,554.46,553.93,0.29764039]
[1741561394231,4.27426316,554.45,552.93,1.3329422]
[1741561394434,7.49064706,554.44,552.95,0.36169635]
[1741561394635,7.49060147,554.43,552.96,0.29771954]
[1741561394835,2.88081518,554.42,552.95,0.36169635]
[1741561395033,1.0767476,554.41,552.96,0.29770665]
[1741561395231,1.0767476,554.41,552.97,0.29770665]
[1741561395429,2.88102104,554.42,552.98,0.29770665]
[1741561395635,1.38603062,554.4,552.98,0.29770665]
[1741561395832,4.26705166,554.4,552.99,0.29770665]
[1741561396036,1.38603062,554.4,553.0,0.29770665]
[1741561396337,3.60367961,554.39,553.01,0.29770665]
[1741561396537,1.38603062,554.39,553.02,0.29770665]
[1741561396740,1.07406606,554.38,553.03,0.29770665]
[1741561397036,1.07406606,554.37,553.04,0.29770665]
[1741561397231,1.07364311,554.36,553.05,0.29770665]
[1741561397437,1.07358953,554.35,553.05,0.29770665]
[1741561397636,2.87812224,554.34,553.06,0.29770665]
[1741561397837,7.48194972,554.33,552.96,0.29770665]
[1741561398036,7.48194972,554.32,552.96,0.29770665]
[1741561398239,4.59436296,554.31,552.96,0.29770665]
[1741561398536,8.19804257,554.3,552.96,0.29770665]
[1741561398740,2.87812224,554.29,552.97,0.29770665]
[1741561399038,3.60367961,554.3,552.98,0.29770665]
[1741561399337,1.38603062,554.29,552.99,0.29770665]
[1741561399533,1.38603062,554.29,552.95,0.36169635]
[1741561399534,1.38603062,554.29,552.96,0.29770665]
[1741561399837,0.31422264,554.28,552.97,0.29770665]
[1741561400037,1.70025326,554.28,552.98,0.29770665]
[1741561400233,1.70025326,554.28,552.95,0.36169635]
[1741561400234,1.70025326,554.28,552.99,0.29770665]
[1741561400433,1.38603062,554.27,553.0,0.29774443]
[1741561400636,1.38603062,554.27,553.01,0.29774443]
[1741561401033,1.38603062,554.27,553.02,0.29774443]
[1741561401232,1.71189941,554.54,553.03,0.29774443]
[1741561401436,2.87417185,554.53,553.04,0.29774443]
[1741561401633,4.58578215,554.52,553.05,0.29774443]
[1741561401836,6.47034568,554.51,553.06,0.29774443]
[1741561402044,7.47222125,554.5,553.07,0.29774443]
[1741561402238,7.47224909,554.49,553.07,0.29774443]
[1741561402434,8.01358438,554.48,553.08,0.29774443]
[1741561402737,11.06842292,554.47,553.09,0.29774443]
[1741561403040,8.01359957,554.46,553.1,0.29774443]
[1741561403232,8.01361265,554.45,553.11,0.29774443]
[1741561403435,4.58540073,554.44,553.12,0.29774443]
[1741561403638,4.58540073,554.43,553.13,0.29774443]
[1741561403842,2.87417185,554.42,553.15,0.36156557]
[1741561404140,4.66620447,554.41,553.16,0.29774111]
[1741561404439,2.44855548,554.4,553.18,0.36154597]
[1741561404639,2.44855548,554.4,553.19,0.29774111]
[1741561404841,2.44855548,554.4,552.61,0.31418576]
[1741561404842,1.37852484,554.39,553.21,0.36152636]
[1741561405038,1.37852484,554.39,553.22,0.29774111]
[1741561405342,1.37852484,554.39,553.24,0.36150676]
[1741561405534,1.37852484,554.38,553.25,0.29774111]
[1741561405735,1.37852484,554.38,553.27,0.36148715]
[1741561405936,1.37852484,554.37,553.28,0.29774111]
[1741561406139,1.37852484,554.37,553.3,0.36146755]
[1741561406439,1.37852484,554.37,553.31,0.29774111]
[1741561406635,2.44599462,554.37,553.33,0.36144796]
[1741561406842,1.37852484,554.37,553.34,0.29774111]
[1741561407141,1.37852484,554.36,553.36,0.36142836]
[1741561407342,1.37852484,554.35,553.37,0.29774111]
[1741561407542,1.37852484,554.35,553.39,0.36140877]
[1741561407741,1.37852484,554.35,553.4,0.29774111]
[1741561407934,1.37852484,554.37,553.42,0.36138918]
[1741561408139,1.37852484,554.37,553.43,0.29774111]
[1741561408337,1.37852484,554.37,553.45,0.36136959]
[1741561408537,1.37852484,554.37,553.46,0.29774111]
[1741561408739,1.37852484,554.37,553.47,0.36135653]
[1741561408947,1.37852484,554.37,553.48,0.29774111]
[1741561409238,1.37852484,554.36,553.49,0.36134347]
[1741561409442,1.37852484,554.36,553.5,0.29774111]
[1741561409743,0.31408934,554.35,553.51,0.65902873]
[1741561409938,0.31408934,554.35,553.52,0.65902221]
[1741561410144,0.31408934,554.35,553.53,0.65901568]
[1741561410443,0.31408934,554.35,553.54,0.65900915]
[1741561410647,0.31408934,554.35,553.55,0.65900262]
[1741561410848,1.37852484,554.34,553.56,0.29769832]
[1741561411047,1.37852484,554.34,553.57,0.36129125]
[1741561411345,1.37852484,554.33,553.57,0.36129125]
[1741561411542,1.37852484,554.33,553.58,0.29774411]
[1741561411739,1.37852484,554.32,553.58,0.29774411]
[1741561411944,2.44545495,554.32,553.58,0.29774411]
[1741561412139,0.31408934,554.35,553.58,0.29774411]
[1741561412140,2.44545495,554.31,553.58,0.29774411]
[1741561412345,2.87167317,554.3,553.58,0.29774411]
[1741561412546,2.87171985,554.29,553.58,0.29774411]
[1741561412741,2.87171985,554.28,553.58,0.29774411]
[1741561412945,2.87171985,554.27,553.58,0.29774411]
[1741561413152,4.5793515,554.26,553.58,0.29774411]
[1741561413349,2.87171985,554.25,553.58,0.29774411]
[1741561413553,1.06693011,554.24,553.58,0.29774411]
[1741561413747,1.37852484,554.23,553.58,0.29774411]
[1741561413953,1.37852484,554.23,553.57,0.36129125]
[1741561413954,4.25024469,554.23,553.57,0.36129125]
[1741561414154,4.57990836,554.22,553.57,0.36129125]
[1741561414355,4.57990836,554.21,553.57,0.36129125]
[1741561414555,4.57959404,554.2,553.57,0.36129125]
[1741561414856,2.87231254,554.19,553.57,0.36129125]
[1741561415050,2.87231254,554.18,553.57,0.36129125]
[1741561415250,1.06705094,554.17,553.57,0.36129125]
[1741561415457,1.06705094,554.18,553.57,0.36129125]
[1741561415759,1.217,554.16,553.57,0.36129125]
[1741561416156,2.28440053,554.16,553.57,0.36129125]
[1741561416558,3.59617383,554.15,553.57,0.36129125]
[1741561416959,1.37852484,554.14,553.57,0.36129125]
[1741561417458,1.37852484,554.13,553.57,0.36129125]
[1741561418059,4.25145019,554.13,553.57,0.36129125]
[1741561418255,2.87297765,554.12,553.57,0.36129125]
[1741561418456,2.87307101,554.11,553.57,0.36129125]
[1741561418760,1.06771523,554.1,553.57,0.36129125]
[1741561418956,1.06771523,554.1,552.59,1.3329422]
[1741561419157,1.06771523,554.09,552.6,0.29792811]
[1741561419461,2.87307101,554.09,552.61,0.29792811]
[1741561419656,4.66388906,554.08,552.61,0.29792811]
[1741561419861,1.06771523,554.07,552.63,0.36190579]
[1741561420063,1.06771523,554.07,552.64,0.29792811]
[1741561420257,1.37852484,554.06,552.65,0.29792811]
[1741561420459,1.37852484,554.06,552.66,0.29792811]
[1741561420655,1.37852484,554.06,552.68,0.36187305]
[1741561420861,1.37852484,554.05,552.69,0.29792131]
[1741561421056,1.37852484,554.05,552.71,0.36185341]
[1741561421261,1.37852484,554.04,552.72,0.29792131]
[1741561421562,1.37852484,554.04,552.74,0.36183377]
[1741561421762,1.37852484,554.03,552.75,0.29792131]
[1741561422062,1.37852484,554.03,552.77,0.36181413]
[1741561422263,1.37852484,554.03,552.78,0.29792131]
[1741561422462,1.37852484,554.03,552.79,0.29792131]
[1741561422657,1.37852484,554.02,552.77,0.36181413]
[1741561422859,1.37852484,554.02,552.78,0.29790949]
[1741561423061,1.37852484,554.02,552.8,0.3617945]
[1741561423264,1.37852484,554.01,552.81,0.29790949]
[1741561423465,1.37852484,554.01,552.83,0.36177486]
[1741561423765,1.69287946,554.0,552.84,0.29790949]
[1741561424061,1.69287946,554.0,552.86,0.36175523]
[1741561424259,1.37852484,553.99,552.87,0.29790949]
[1741561424461,1.37852484,553.99,552.89,0.3617356]
[1741561424658,1.37852484,553.99,552.9,0.29787422]
[1741561424862,0.31435462,554.0,552.9,0.29787422]
[1741561425062,1.37852484,554.11,552.91,0.29787422]
[1741561425258,0.31430636,554.02,552.92,0.29787422]
[1741561425457,1.37852484,554.11,552.9,0.29787422]
[1741561425765,0.31429358,554.01,552.91,0.29787422]
[1741561425967,1.37852484,554.1,552.93,0.36170943]
[1741561426265,1.217,554.16,552.94,0.29787422]
[1741561426560,1.217,554.16,552.96,0.36168981]
[1741561426766,1.37861733,554.15,552.97,0.29787422]
[1741561427068,1.37861733,554.15,552.99,0.36167019]
[1741561427361,1.217,554.16,553.0,0.29787422]
[1741561427362,1.69291517,554.14,553.0,0.29787422]
[1741561427667,1.69291517,554.14,553.02,0.36165057]
[1741561427865,4.2536304,554.13,553.02,0.36165057]
[1741561428061,1.37861733,554.13,553.03,0.29788243]
[1741561428266,1.37861733,554.12,553.05,0.36163095]
[1741561428462,1.37861733,554.12,553.06,0.29788243]
[1741561428662,1.37861733,554.12,553.08,0.36161134]
[1741561428967,1.37861733,554.11,553.09,0.29784854]
[1741561429368,1.37861733,554.11,553.11,0.36159172]
[1741561429568,0.957,554.16,553.11,0.36159172]
[1741561429569,0.957,554.16,553.12,0.29784854]
[1741561429765,0.31425669,554.1,553.14,0.36157211]
[1741561429965,0.31425669,554.1,553.15,0.29784854]
[1741561430170,0.31425669,554.1,553.17,0.3615525]
[1741561430366,0.31425669,554.1,553.18,0.29784854]
[1741561430770,0.31425669,554.1,553.2,0.36153289]
[1741561431067,0.26,554.09,553.21,0.29784854]
[1741561431268,0.26,554.09,553.23,0.36151329]
[1741561431463,0.26,554.09,553.24,0.29784854]
[1741561431668,0.26,554.09,553.25,0.65932617]
[1741561431869,0.26,554.09,553.26,0.65931964]
[1741561432066,0.26,554.09,553.27,0.6593131]
[1741561432265,0.26,554.09,553.28,0.65930657]
[1741561432469,0.26,554.09,553.29,0.65930004]
[1741561432671,0.26,554.09,553.3,0.6592935]
[1741561432970,0.26,554.09,553.31,0.65928697]
[1741561433167,1.38110386,554.08,553.32,0.29782595]
[1741561433371,1.38110386,554.08,553.31,0.36146102]
[1741561433567,1.38110386,554.08,553.32,0.29787837]
[1741561433764,1.69541448,554.07,553.33,0.36144796]
[1741561433968,1.69541448,554.07,553.34,0.29787837]
[1741561434272,1.38110386,554.06,553.34,0.29787837]
[1741561434870,1.38110386,554.05,553.34,0.29787837]
[1741561435466,0.26,554.09,553.35,0.29786018]
[1741561435666,0.26,554.09,553.34,0.29786018]
[1741561435869,0.26,554.09,553.35,0.29786018]
[1741561436071,1.38423902,554.08,553.34,0.29786018]
[1741561436266,1.38423902,554.08,553.33,0.36144796]
[1741561436267,1.38423902,554.08,553.35,0.29786018]
[1741561436472,1.38423902,554.08,553.34,0.29786018]
[1741561436668,0.26,554.09,553.35,0.29786018]
[1741561436872,0.31424959,554.07,553.34,0.29786018]
[1741561437074,0.31424959,554.07,553.35,0.29786018]
[1741561437273,0.31424959,554.07,553.34,0.29786018]
[1741561437567,0.31424959,554.07,553.35,0.29786018]
[1741561437773,0.31424959,554.07,553.34,0.29786018]
[1741561437969,0.31424959,554.07,553.35,0.29786018]
[1741561438165,1.38681251,554.06,553.34,0.29786018]
[1741561438371,1.38681251,554.06,553.35,0.29786018]
[1741561438571,1.38681251,554.06,553.36,0.29786018]
[1741561438772,0.26,554.09,553.37,0.29786018]
[1741561438973,1.38806986,554.08,553.38,0.29786542]
[1741561439170,1.38806986,554.08,553.34,0.29786542]
[1741561439476,1.38806986,554.08,553.33,0.36144796]
[1741561439477,1.38806986,554.07,553.35,0.29786542]
[1741561439673,1.70233364,554.07,553.34,0.29786542]
[1741561439976,2.48633364,554.07,553.35,0.29786542]
[1741561440173,1.38806986,554.06,553.34,0.29786542]
[1741561440378,1.38806986,554.06,553.33,0.36144796]
[1741561440580,1.38806986,554.06,553.35,0.29786216]
[1741561440779,1.38806986,554.06,553.36,0.29786216]
[1741561440978,1.09826378,554.07,553.33,0.36144796]
[1741561440979,1.09826378,554.07,553.37,0.29786271]
[1741561441179,1.09826378,554.07,553.34,0.29786271]
[1741561441375,1.09826378,554.07,553.35,0.29786271]
[1741561441574,1.09826378,554.07,553.36,0.29786271]
[1741561441781,1.09826378,554.07,553.36,0.36142836]
[1741561441982,1.09826378,554.07,553.37,0.29786271]
[1741561442182,1.09826378,554.07,553.38,0.3614153]
[1741561442374,1.09826378,554.07,553.39,0.29786271]
[1741561442579,1.09826378,554.07,553.39,0.65927148]
[1741561442776,1.09826378,554.07,553.4,0.29786271]
[1741561443781,1.39173857,554.06,553.4,0.29786271]
[1741561444182,1.09826378,554.07,553.4,0.65926495]
[1741561444383,1.09826378,554.07,553.41,0.65925842]
[1741561444577,1.09826378,554.07,553.42,0.65925189]
[1741561444781,1.09826378,554.07,553.43,0.65924536]
[1741561445082,1.09826378,554.07,553.44,0.65923883]
[1741561445281,1.09826378,554.07,553.45,0.6592323]
[1741561445475,1.09826378,554.07,553.46,0.29786271]
[1741561446181,1.39277335,554.06,553.46,0.29786271]
[1741561446575,1.39277335,554.05,553.46,0.29786271]
[1741561446977,0.26,554.04,553.46,0.29786271]
[1741561448587,0.26,554.04,553.47,0.36135653]
[1741561448979,0.26,554.04,553.48,0.29786271]
[1741561450584,1.39510017,554.03,553.48,0.29786271]
[1741561450883,0.26,554.04,553.48,0.29786271]
[1741561451287,0.31424817,554.02,553.48,0.29786271]
[1741561451888,1.39771623,554.01,553.48,0.29786271]
[1741561452187,1.39771623,554.0,553.48,0.29786271]
[1741561452782,0.31424817,554.02,553.48,0.29786271]
[1741561453186,1.39811922,554.01,553.48,0.29786271]